[Event "Early-Titled-Tuesday-Blitz-February-13-2024"]
[Site "Chess.com"]
[Date "2024.02.13"]
[Round "11"]
[White "Bauman_Guy"]
[Black "FoxOnTheRun97"]
[Result "1-0"]
[WhiteElo "2897"]
[BlackElo "2675"]
[TimeControl "180+1"]
[EndTime "10:08:47 PST"]
[Termination "Bauman_Guy won by checkmate"]

1. e4 {[%clk 0:03:00.9]} 1... c6 {[%clk 0:02:41.1]} 2. d4 {[%clk 0:03:00.7]}
2... d5 {[%clk 0:02:41.5]} 3. e5 {[%clk 0:02:59.4]} 3... Bf5 {[%clk 0:02:41.1]}
4. h3 {[%clk 0:02:59.5]} 4... e6 {[%clk 0:02:40.4]} 5. c3 {[%clk 0:02:59.1]}
5... c5 {[%clk 0:02:40]} 6. Be3 {[%clk 0:02:59.3]} 6... cxd4 {[%clk 0:02:38.3]}
7. cxd4 {[%clk 0:02:59.4]} 7... Nc6 {[%clk 0:02:36.5]} 8. Nc3 {[%clk 0:02:57.8]}
8... Nge7 {[%clk 0:02:30.3]} 9. Nf3 {[%clk 0:02:57]} 9... h6 {[%clk 0:02:28.4]}
10. a3 {[%clk 0:02:53.9]} 10... Bh7 {[%clk 0:02:27.9]} 11. g4 {[%clk 0:02:52.7]}
11... Nc8 {[%clk 0:02:20]} 12. Bg2 {[%clk 0:02:52.5]} 12... Nb6 {[%clk
0:02:19.3]} 13. b3 {[%clk 0:02:53]} 13... Rc8 {[%clk 0:02:13.7]} 14. Bd2 {[%clk
0:02:45.9]} 14... Bd3 {[%clk 0:02:10]} 15. Bf1 {[%clk 0:02:23.7]} 15... Bxf1
{[%clk 0:02:05.3]} 16. Kxf1 {[%clk 0:02:24.6]} 16... Be7 {[%clk 0:01:57.5]} 17.
Kg2 {[%clk 0:02:24.2]} 17... O-O {[%clk 0:01:49.2]} 18. Ne2 {[%clk 0:02:23.4]}
18... Qd7 {[%clk 0:01:37.5]} 19. Nf4 {[%clk 0:02:23.2]} 19... f6 {[%clk
0:01:34.4]} 20. Ng6 {[%clk 0:02:20.3]} 20... Rf7 {[%clk 0:01:33.9]} 21. Re1
{[%clk 0:02:15]} 21... f5 {[%clk 0:01:31.6]} 22. g5 {[%clk 0:02:14]} 22... hxg5
{[%clk 0:01:09.8]} 23. Nxg5 {[%clk 0:02:11]} 23... Bxg5 {[%clk 0:01:09.7]} 24.
Bxg5 {[%clk 0:02:11.9]} 24... Qe8 {[%clk 0:01:05.2]} 25. Qh5 {[%clk 0:02:10.6]}
25... Rd7 {[%clk 0:00:59.6]} 26. Rad1 {[%clk 0:02:07.4]} 26... Nd8 {[%clk
0:00:43.8]} 27. Re3 {[%clk 0:01:58.1]} 27... Nf7 {[%clk 0:00:42.4]} 28. Rg3
{[%clk 0:01:30.8]} 28... Rc2 {[%clk 0:00:37.2]} 29. Bf6 {[%clk 0:01:23.2]} 29...
Nh6 {[%clk 0:00:28]} 30. Bxg7 {[%clk 0:01:05.4]} 30... Rxg7 {[%clk 0:00:21.1]}
31. Qxh6 {[%clk 0:01:04.7]} 31... Nd7 {[%clk 0:00:16.6]} 32. Rdd3 {[%clk
0:01:04.2]} 32... Kf7 {[%clk 0:00:15.1]} 33. Nh8+ {[%clk 0:01:02.8]} 33... Qxh8
{[%clk 0:00:13.7]} 34. Qxh8 {[%clk 0:01:03]} 34... Rxg3+ {[%clk 0:00:13.6]} 35.
Rxg3 {[%clk 0:01:03.3]} 35... Ke7 {[%clk 0:00:13.3]} 36. Rg7# {[%clk 0:01:03]}
1-0

[Event "Early-Titled-Tuesday-Blitz-February-13-2024"]
[Site "Chess.com"]
[Date "2024.02.13"]
[Round "11"]
[White "Vaathi_Coming"]
[Black "lachesisQ"]
[Result "1-0"]
[WhiteElo "2926"]
[BlackElo "3047"]
[TimeControl "180+1"]
[EndTime "10:08:48 PST"]
[Termination "Vaathi_Coming won by resignation"]

1. Nf3 {[%clk 0:03:00.9]} 1... Nf6 {[%clk 0:02:58.6]} 2. d4 {[%clk 0:02:59.8]}
2... g6 {[%clk 0:02:58.5]} 3. c3 {[%clk 0:02:58.5]} 3... Bg7 {[%clk 0:02:58.6]}
4. Bf4 {[%clk 0:02:57.8]} 4... O-O {[%clk 0:02:58.6]} 5. h3 {[%clk 0:02:56.8]}
5... d6 {[%clk 0:02:59.1]} 6. e3 {[%clk 0:02:57]} 6... Nbd7 {[%clk 0:02:59.9]}
7. Nbd2 {[%clk 0:02:56.4]} 7... b6 {[%clk 0:02:59.8]} 8. Be2 {[%clk 0:02:56]}
8... Bb7 {[%clk 0:03:00]} 9. O-O {[%clk 0:02:56.7]} 9... Re8 {[%clk 0:03:00.1]}
10. Bh2 {[%clk 0:02:57]} 10... e5 {[%clk 0:03:00.1]} 11. a4 {[%clk 0:02:57]}
11... a5 {[%clk 0:02:58.4]} 12. Qb3 {[%clk 0:02:52.6]} 12... h6 {[%clk
0:02:52.7]} 13. Rfd1 {[%clk 0:02:52.4]} 13... Qe7 {[%clk 0:02:52.5]} 14. Nc4
{[%clk 0:02:50.2]} 14... e4 {[%clk 0:02:51.4]} 15. Nfd2 {[%clk 0:02:49.4]} 15...
g5 {[%clk 0:02:45.9]} 16. Na3 {[%clk 0:02:42.9]} 16... Bd5 {[%clk 0:02:42.1]}
17. Qc2 {[%clk 0:02:21]} 17... Be6 {[%clk 0:02:42]} 18. Nb5 {[%clk 0:02:18]}
18... Qd8 {[%clk 0:02:40.3]} 19. Nxe4 {[%clk 0:02:06.6]} 19... g4 {[%clk
0:02:28.1]} 20. Nxf6+ {[%clk 0:02:00.9]} 20... Nxf6 {[%clk 0:02:27.7]} 21. hxg4
{[%clk 0:01:59.9]} 21... Nxg4 {[%clk 0:02:26.1]} 22. Bg3 {[%clk 0:01:58.2]}
22... h5 {[%clk 0:02:18.3]} 23. e4 {[%clk 0:01:45.4]} 23... h4 {[%clk
0:02:13.9]} 24. Bf4 {[%clk 0:01:45.7]} 24... Qf6 {[%clk 0:02:13.8]} 25. Qd2
{[%clk 0:01:29.6]} 25... Nxf2 {[%clk 0:01:31.5]} 26. Bg5 {[%clk 0:01:18.4]}
26... Nh3+ {[%clk 0:01:05.6]} 27. gxh3 {[%clk 0:01:19.3]} 27... Qg6 {[%clk
0:01:05.9]} 28. Kh2 {[%clk 0:01:14.9]} 28... Qxe4 {[%clk 0:01:05.9]} 29. Rg1
{[%clk 0:00:54.8]} 29... Bf5 {[%clk 0:00:48]} 30. Rae1 {[%clk 0:00:43.5]} 30...
Bg6 {[%clk 0:00:47]} 31. Nxc7 {[%clk 0:00:40.1]} 31... Qf5 {[%clk 0:00:46.9]}
32. Bg4 {[%clk 0:00:29.7]} 1-0

[Event "Early-Titled-Tuesday-Blitz-February-13-2024"]
[Site "Chess.com"]
[Date "2024.02.13"]
[Round "11"]
[White "ValentinDragnev"]
[Black "ChristopherYoo"]
[Result "0-1"]
[WhiteElo "2755"]
[BlackElo "2962"]
[TimeControl "180+1"]
[EndTime "10:08:50 PST"]
[Termination "ChristopherYoo won by resignation"]

1. e4 {[%clk 0:02:57.6]} 1... e5 {[%clk 0:03:00]} 2. Nf3 {[%clk 0:02:57.8]} 2...
Nc6 {[%clk 0:03:00.4]} 3. Bc4 {[%clk 0:02:56.2]} 3... Bc5 {[%clk 0:02:59.8]} 4.
d3 {[%clk 0:02:54.8]} 4... Nf6 {[%clk 0:03:00.4]} 5. Nc3 {[%clk 0:02:55.4]} 5...
O-O {[%clk 0:03:00.4]} 6. Bg5 {[%clk 0:02:52.3]} 6... h6 {[%clk 0:03:00.7]} 7.
Bxf6 {[%clk 0:02:45.9]} 7... Qxf6 {[%clk 0:03:00.5]} 8. Nd5 {[%clk 0:02:46.7]}
8... Qd8 {[%clk 0:03:00.6]} 9. c3 {[%clk 0:02:47.3]} 9... d6 {[%clk 0:02:58.8]}
10. h3 {[%clk 0:02:45]} 10... Ne7 {[%clk 0:02:58.5]} 11. O-O {[%clk 0:02:36.8]}
11... Nxd5 {[%clk 0:02:57.5]} 12. Bxd5 {[%clk 0:02:37]} 12... c6 {[%clk
0:02:58]} 13. Bb3 {[%clk 0:02:35]} 13... a5 {[%clk 0:02:58.5]} 14. d4 {[%clk
0:02:34.6]} 14... exd4 {[%clk 0:02:58.8]} 15. cxd4 {[%clk 0:02:35.5]} 15... Bb6
{[%clk 0:02:59.4]} 16. Re1 {[%clk 0:02:33.4]} 16... Re8 {[%clk 0:02:53.3]} 17.
Qd3 {[%clk 0:02:32.5]} 17... a4 {[%clk 0:02:49.7]} 18. Bc2 {[%clk 0:02:32]}
18... g6 {[%clk 0:02:43.4]} 19. Qd2 {[%clk 0:02:20.6]} 19... Kg7 {[%clk
0:02:38.9]} 20. Qc3 {[%clk 0:02:20.6]} 20... Ba5 {[%clk 0:02:37.8]} 21. Qd3
{[%clk 0:02:12.5]} 21... Bxe1 {[%clk 0:02:37]} 22. Rxe1 {[%clk 0:02:13.4]} 22...
Qa5 {[%clk 0:02:37.3]} 23. a3 {[%clk 0:01:57.6]} 23... Be6 {[%clk 0:02:30]} 24.
Re3 {[%clk 0:01:38.8]} 24... d5 {[%clk 0:02:24.8]} 25. Ne5 {[%clk 0:01:39.1]}
25... dxe4 {[%clk 0:02:23.2]} 26. Qxe4 {[%clk 0:01:39.4]} 26... Qd5 {[%clk
0:02:03.3]} 27. Qf4 {[%clk 0:01:33.7]} 27... Rad8 {[%clk 0:01:57.9]} 28. Rg3
{[%clk 0:00:35.7]} 28... Qxd4 {[%clk 0:01:52.2]} 29. Nxg6 {[%clk 0:00:35.2]}
29... Qxf4 {[%clk 0:01:52.3]} 30. Nxf4+ {[%clk 0:00:36.1]} 30... Kf6 {[%clk
0:01:52.1]} 31. Bxa4 {[%clk 0:00:35.7]} 31... Rd4 {[%clk 0:01:43.4]} 32. Nh5+
{[%clk 0:00:20.5]} 32... Ke7 {[%clk 0:01:43.5]} 33. Bc2 {[%clk 0:00:17.9]} 33...
Rd2 {[%clk 0:01:42.4]} 34. Rc3 {[%clk 0:00:18.1]} 34... Red8 {[%clk 0:01:40.9]}
35. Ng3 {[%clk 0:00:17.1]} 35... R8d4 {[%clk 0:01:35.7]} 36. Nf1 {[%clk
0:00:12.6]} 36... Re2 {[%clk 0:01:35.6]} 37. Ng3 {[%clk 0:00:11]} 37... Re1+
{[%clk 0:01:35.4]} 38. Kh2 {[%clk 0:00:11.6]} 38... Rd2 {[%clk 0:01:33.2]} 39.
f3 {[%clk 0:00:07.7]} 39... Rc1 {[%clk 0:01:33.1]} 40. Be4 {[%clk 0:00:04.2]}
40... Rxc3 {[%clk 0:01:33.2]} 41. bxc3 {[%clk 0:00:05.1]} 41... Ra2 {[%clk
0:01:33.3]} 0-1

[Event "Early-Titled-Tuesday-Blitz-February-13-2024"]
[Site "Chess.com"]
[Date "2024.02.13"]
[Round "11"]
[White "Chess_Gainz"]
[Black "Binary010"]
[Result "0-1"]
[WhiteElo "2563"]
[BlackElo "2884"]
[TimeControl "180+1"]
[EndTime "10:08:54 PST"]
[Termination "Binary010 won by resignation"]

1. e4 {[%clk 0:03:00.9]} 1... a6 {[%clk 0:03:00.3]} 2. d4 {[%clk 0:03:00.6]}
2... b5 {[%clk 0:03:00.1]} 3. Bd3 {[%clk 0:03:00.8]} 3... Bb7 {[%clk 0:02:59.9]}
4. Nf3 {[%clk 0:03:00.7]} 4... e6 {[%clk 0:03:00.2]} 5. O-O {[%clk 0:03:00.4]}
5... c5 {[%clk 0:03:00.6]} 6. c3 {[%clk 0:03:00.2]} 6... Nf6 {[%clk 0:02:53.5]}
7. Qe2 {[%clk 0:02:53.7]} 7... Be7 {[%clk 0:02:51.8]} 8. a3 {[%clk 0:02:47.8]}
8... Nc6 {[%clk 0:02:39.7]} 9. Nbd2 {[%clk 0:02:29.5]} 9... cxd4 {[%clk
0:02:36.6]} 10. cxd4 {[%clk 0:02:29]} 10... Rc8 {[%clk 0:02:36.8]} 11. e5 {[%clk
0:02:27.9]} 11... Nd5 {[%clk 0:02:36.2]} 12. Ne4 {[%clk 0:02:28.3]} 12... h6
{[%clk 0:02:33.3]} 13. Be3 {[%clk 0:02:19.2]} 13... Na5 {[%clk 0:02:31.6]} 14.
Nfd2 {[%clk 0:02:09.6]} 14... O-O {[%clk 0:02:29.7]} 15. Qh5 {[%clk 0:01:54.6]}
15... Nxe3 {[%clk 0:01:33.3]} 16. fxe3 {[%clk 0:01:53.8]} 16... Nc4 {[%clk
0:01:34]} 17. Nxc4 {[%clk 0:01:30.8]} 17... bxc4 {[%clk 0:01:34]} 18. Bc2 {[%clk
0:01:30.8]} 18... Bxe4 {[%clk 0:01:20.9]} 19. Bxe4 {[%clk 0:01:30.5]} 19... c3
{[%clk 0:01:21.7]} 20. bxc3 {[%clk 0:01:25.1]} 20... Rxc3 {[%clk 0:01:21.7]} 21.
Rf3 {[%clk 0:01:11.1]} 21... Bg5 {[%clk 0:01:14.4]} 22. Re1 {[%clk 0:00:45]}
22... Rxa3 {[%clk 0:01:13]} 23. Kh1 {[%clk 0:00:33.1]} 23... Qa5 {[%clk
0:01:10]} 24. Ref1 {[%clk 0:00:33.6]} 24... Ra1 {[%clk 0:01:09.3]} 25. h4 {[%clk
0:00:33]} 25... Rxf1+ {[%clk 0:01:04.2]} 26. Rxf1 {[%clk 0:00:33.3]} 26... Bxe3
{[%clk 0:01:04.8]} 27. Rf3 {[%clk 0:00:03.3]} 27... Bxd4 {[%clk 0:00:55.2]} 28.
Rd3 {[%clk 0:00:02]} 28... Qe1+ {[%clk 0:00:49.4]} 29. Kh2 {[%clk 0:00:02]}
29... Qxe4 {[%clk 0:00:48.9]} 0-1

[Event "Early-Titled-Tuesday-Blitz-February-13-2024"]
[Site "Chess.com"]
[Date "2024.02.13"]
[Round "11"]
[White "Aash20"]
[Black "davigator"]
[Result "0-1"]
[WhiteElo "2444"]
[BlackElo "2352"]
[TimeControl "180+1"]
[EndTime "10:08:57 PST"]
[Termination "davigator won by checkmate"]

1. e4 {[%clk 0:03:00.9]} 1... c5 {[%clk 0:02:59.4]} 2. Nf3 {[%clk 0:03:00.5]}
2... Nc6 {[%clk 0:02:59.5]} 3. Bb5 {[%clk 0:02:59.9]} 3... g6 {[%clk 0:02:58.9]}
4. O-O {[%clk 0:02:59.6]} 4... Bg7 {[%clk 0:02:59]} 5. Nc3 {[%clk 0:02:58.8]}
5... Nh6 {[%clk 0:02:57.8]} 6. d3 {[%clk 0:02:57.6]} 6... O-O {[%clk 0:02:57.5]}
7. Be3 {[%clk 0:02:56.1]} 7... Nd4 {[%clk 0:02:52.8]} 8. Bxd4 {[%clk 0:02:54.4]}
8... cxd4 {[%clk 0:02:52.6]} 9. Ne2 {[%clk 0:02:48.3]} 9... Qb6 {[%clk
0:02:50.8]} 10. a4 {[%clk 0:02:45.8]} 10... d6 {[%clk 0:02:50.1]} 11. Qd2 {[%clk
0:02:41.8]} 11... Ng4 {[%clk 0:02:46.5]} 12. h3 {[%clk 0:02:40.7]} 12... Ne5
{[%clk 0:02:40.4]} 13. Nxe5 {[%clk 0:02:39.9]} 13... Bxe5 {[%clk 0:02:39]} 14.
Bc4 {[%clk 0:02:39.4]} 14... e6 {[%clk 0:02:38.1]} 15. b4 {[%clk 0:02:34.8]}
15... a6 {[%clk 0:02:37.6]} 16. a5 {[%clk 0:02:29.4]} 16... Qa7 {[%clk
0:02:37.4]} 17. f4 {[%clk 0:02:25.8]} 17... Bg7 {[%clk 0:02:36.5]} 18. Kh1
{[%clk 0:02:25.1]} 18... Kh8 {[%clk 0:02:33.9]} 19. Qe1 {[%clk 0:02:10.6]} 19...
Bd7 {[%clk 0:02:32.6]} 20. Qh4 {[%clk 0:02:09.1]} 20... f5 {[%clk 0:02:30.8]}
21. Ng3 {[%clk 0:02:01.8]} 21... Bf6 {[%clk 0:02:26.2]} 22. Qh6 {[%clk 0:02:01]}
22... Rae8 {[%clk 0:02:09.3]} 23. Rae1 {[%clk 0:01:29.2]} 23... Qa8 {[%clk
0:02:08.4]} 24. exf5 {[%clk 0:01:28.2]} 24... exf5 {[%clk 0:02:08.2]} 25. Rxe8
{[%clk 0:01:00.1]} 25... Qxe8 {[%clk 0:02:06.9]} 26. Kh2 {[%clk 0:00:50.7]}
26... Qe7 {[%clk 0:01:58.2]} 27. Rf2 {[%clk 0:00:49.4]} 27... Bg7 {[%clk
0:01:57]} 28. Qg5 {[%clk 0:00:48.7]} 28... Qxg5 {[%clk 0:01:57.4]} 29. fxg5
{[%clk 0:00:48.3]} 29... Re8 {[%clk 0:01:57.8]} 30. Re2 {[%clk 0:00:47.5]} 30...
Re3 {[%clk 0:01:56.5]} 31. Rxe3 {[%clk 0:00:46.8]} 31... dxe3 {[%clk 0:01:56.8]}
32. Ne2 {[%clk 0:00:47.3]} 32... Be5+ {[%clk 0:01:55]} 33. g3 {[%clk 0:00:46.9]}
33... Bc6 {[%clk 0:01:55.7]} 34. d4 {[%clk 0:00:44.9]} 34... Bg7 {[%clk
0:01:54.8]} 35. d5 {[%clk 0:00:44]} 35... Ba4 {[%clk 0:01:51.8]} 36. Bd3 {[%clk
0:00:43.3]} 36... h6 {[%clk 0:01:43.4]} 37. gxh6 {[%clk 0:00:35.2]} 37... Bxh6
{[%clk 0:01:43.5]} 38. Kg2 {[%clk 0:00:36.1]} 38... Kg7 {[%clk 0:01:43.6]} 39.
Kf3 {[%clk 0:00:35.9]} 39... Kf6 {[%clk 0:01:44.2]} 40. Nd4 {[%clk 0:00:34.4]}
40... Ke5 {[%clk 0:01:42.9]} 41. Ne6 {[%clk 0:00:32.3]} 41... Kxd5 {[%clk
0:01:38.3]} 42. Nf4+ {[%clk 0:00:32.2]} 42... Bxf4 {[%clk 0:01:37.5]} 43. Kxf4
{[%clk 0:00:33.1]} 43... Kd4 {[%clk 0:01:36.2]} 44. g4 {[%clk 0:00:32.4]} 44...
Bxc2 {[%clk 0:01:35.6]} 45. Bxc2 {[%clk 0:00:23.7]} 45... e2 {[%clk 0:01:35.4]}
46. Bxf5 {[%clk 0:00:24.6]} 46... gxf5 {[%clk 0:01:34.8]} 47. Kxf5 {[%clk
0:00:25]} 47... e1=Q {[%clk 0:01:34.9]} 48. h4 {[%clk 0:00:25.9]} 48... Qxh4
{[%clk 0:01:34.8]} 49. g5 {[%clk 0:00:25.9]} 49... Qe4+ {[%clk 0:01:33.9]} 50.
Kf6 {[%clk 0:00:25.7]} 50... Qf4+ {[%clk 0:01:33.1]} 51. Kg6 {[%clk 0:00:25.6]}
51... Ke5 {[%clk 0:01:33]} 52. Kh5 {[%clk 0:00:25.4]} 52... Kf5 {[%clk
0:01:33.1]} 53. g6 {[%clk 0:00:24.1]} 53... Qg5# {[%clk 0:01:33.4]} 0-1

[Event "Early-Titled-Tuesday-Blitz-February-13-2024"]
[Site "Chess.com"]
[Date "2024.02.13"]
[Round "11"]
[White "Lion-Al-Messi"]
[Black "Der_Balak_3Halak"]
[Result "1-0"]
[WhiteElo "2563"]
[BlackElo "2442"]
[TimeControl "180+1"]
[EndTime "10:09:00 PST"]
[Termination "Lion-Al-Messi won by resignation"]

1. e4 {[%clk 0:02:59.3]} 1... c5 {[%clk 0:02:59.3]} 2. Nf3 {[%clk 0:03:00]} 2...
Nc6 {[%clk 0:02:58.9]} 3. d4 {[%clk 0:03:00.5]} 3... cxd4 {[%clk 0:02:59.8]} 4.
Nxd4 {[%clk 0:03:01]} 4... Nf6 {[%clk 0:02:59.9]} 5. Nc3 {[%clk 0:03:00.2]} 5...
Nxd4 {[%clk 0:02:57.5]} 6. Qxd4 {[%clk 0:02:59.8]} 6... d6 {[%clk 0:02:58]} 7.
Bg5 {[%clk 0:02:53.8]} 7... g6 {[%clk 0:02:53.2]} 8. Bxf6 {[%clk 0:02:53.2]}
8... exf6 {[%clk 0:02:54.1]} 9. Bb5+ {[%clk 0:02:52.9]} 9... Bd7 {[%clk
0:02:50.4]} 10. Bxd7+ {[%clk 0:02:52.9]} 10... Kxd7 {[%clk 0:02:45.3]} 11. O-O-O
{[%clk 0:02:51.5]} 11... Be7 {[%clk 0:02:38]} 12. Nd5 {[%clk 0:02:50]} 12... Ke8
{[%clk 0:02:24.8]} 13. h4 {[%clk 0:02:47.5]} 13... h5 {[%clk 0:02:20]} 14. Rh3
{[%clk 0:02:45.7]} 14... Kf8 {[%clk 0:02:17.3]} 15. Rf3 {[%clk 0:02:38.8]} 15...
Kg7 {[%clk 0:02:16.3]} 16. Nxe7 {[%clk 0:02:39.4]} 16... Qxe7 {[%clk 0:02:17.1]}
17. Qxd6 {[%clk 0:02:39.7]} 17... Rhe8 {[%clk 0:02:15.4]} 18. Qxe7 {[%clk
0:02:37.9]} 18... Rxe7 {[%clk 0:02:16.3]} 19. Rd6 {[%clk 0:02:37.7]} 19... Rxe4
{[%clk 0:02:05.4]} 20. Rdxf6 {[%clk 0:02:37.6]} 20... Rf8 {[%clk 0:01:46.2]} 21.
R6f4 {[%clk 0:02:35.7]} 21... Re1+ {[%clk 0:01:40.5]} 22. Kd2 {[%clk 0:02:35.3]}
22... Rfe8 {[%clk 0:01:41.4]} 23. Rxf7+ {[%clk 0:02:34.7]} 23... Kg8 {[%clk
0:01:42.1]} 24. Rxb7 {[%clk 0:02:33.1]} 24... R1e2+ {[%clk 0:01:03.3]} 25. Kd3
{[%clk 0:02:30.6]} 25... R2e6 {[%clk 0:00:51.4]} 26. Re3 {[%clk 0:02:24.3]}
26... Rd6+ {[%clk 0:00:42.6]} 27. Ke2 {[%clk 0:02:23]} 27... Red8 {[%clk
0:00:43]} 28. Rd3 {[%clk 0:02:17.3]} 28... Re6+ {[%clk 0:00:41.7]} 29. Kd2
{[%clk 0:02:17.6]} 29... Rde8 {[%clk 0:00:41.3]} 30. Rdd7 {[%clk 0:02:14.5]}
30... Re2+ {[%clk 0:00:40.5]} 31. Kd3 {[%clk 0:02:13.6]} 31... Rxf2 {[%clk
0:00:36.5]} 32. Rg7+ {[%clk 0:02:12.7]} 32... Kf8 {[%clk 0:00:34.4]} 33. Rxg6
{[%clk 0:02:10.5]} 33... Rd8+ {[%clk 0:00:35]} 34. Ke3 {[%clk 0:02:03.4]} 34...
Rxc2 {[%clk 0:00:31.7]} 35. Rxa7 {[%clk 0:02:01.1]} 35... Rxb2 {[%clk
0:00:28.6]} 36. Rh6 {[%clk 0:01:51.2]} 36... Rxg2 {[%clk 0:00:23.4]} 37. Rh8+
{[%clk 0:01:48]} 37... Rg8 {[%clk 0:00:23.2]} 38. Rxg8+ {[%clk 0:01:48.3]} 38...
Kxg8 {[%clk 0:00:23.9]} 39. Kf4 {[%clk 0:01:47.2]} 39... Rd5 {[%clk 0:00:18.1]}
40. a4 {[%clk 0:01:46.2]} 40... Kf8 {[%clk 0:00:12]} 41. a5 {[%clk 0:01:45]}
41... Kg8 {[%clk 0:00:12.6]} 42. a6 {[%clk 0:01:45.2]} 42... Rb5 {[%clk
0:00:12.4]} 43. Rb7 {[%clk 0:01:44.1]} 43... Ra5 {[%clk 0:00:11.2]} 44. a7
{[%clk 0:01:44.5]} 44... Ra4+ {[%clk 0:00:10.9]} 45. Kg5 {[%clk 0:01:44.2]}
45... Ra5+ {[%clk 0:00:11.1]} 46. Kg6 {[%clk 0:01:44.1]} 46... Ra6+ {[%clk
0:00:11.1]} 47. Kxh5 {[%clk 0:01:44.5]} 47... Ra5+ {[%clk 0:00:11.4]} 48. Kg6
{[%clk 0:01:45]} 48... Ra6+ {[%clk 0:00:11.7]} 49. Kf5 {[%clk 0:01:45.5]} 49...
Ra5+ {[%clk 0:00:12.2]} 50. Ke6 {[%clk 0:01:45.8]} 50... Ra6+ {[%clk 0:00:13.1]}
51. Ke7 {[%clk 0:01:45.5]} 51... Kg7 {[%clk 0:00:13]} 52. Kd8+ {[%clk
0:01:41.1]} 52... Kh6 {[%clk 0:00:11.7]} 53. Kc8 {[%clk 0:01:41.2]} 53... Kh5
{[%clk 0:00:09.2]} 54. Kb8 {[%clk 0:01:40.9]} 1-0

[Event "Early-Titled-Tuesday-Blitz-February-13-2024"]
[Site "Chess.com"]
[Date "2024.02.13"]
[Round "11"]
[White "db-banana"]
[Black "Mikasinski"]
[Result "0-1"]
[WhiteElo "2484"]
[BlackElo "2640"]
[TimeControl "180+1"]
[EndTime "10:09:07 PST"]
[Termination "Mikasinski won by resignation"]

1. e4 {[%clk 0:02:54.9]} 1... c5 {[%clk 0:02:56.2]} 2. Nf3 {[%clk 0:02:54.7]}
2... d6 {[%clk 0:02:53.5]} 3. d4 {[%clk 0:02:55.2]} 3... cxd4 {[%clk 0:02:54.4]}
4. Nxd4 {[%clk 0:02:55.3]} 4... Nf6 {[%clk 0:02:53.7]} 5. Nc3 {[%clk 0:02:55.7]}
5... g6 {[%clk 0:02:54]} 6. Be3 {[%clk 0:02:54.7]} 6... Bg7 {[%clk 0:02:54.6]}
7. f3 {[%clk 0:02:55.2]} 7... O-O {[%clk 0:02:55]} 8. Qd2 {[%clk 0:02:55.7]}
8... Nc6 {[%clk 0:02:55.6]} 9. Bc4 {[%clk 0:02:56.3]} 9... Bd7 {[%clk
0:02:54.1]} 10. O-O-O {[%clk 0:02:55.7]} 10... Rc8 {[%clk 0:02:53.2]} 11. Bb3
{[%clk 0:02:54.6]} 11... Ne5 {[%clk 0:02:53.6]} 12. g4 {[%clk 0:02:53.4]} 12...
Qa5 {[%clk 0:02:51]} 13. Kb1 {[%clk 0:02:48.5]} 13... Rxc3 {[%clk 0:02:42.8]}
14. Qxc3 {[%clk 0:02:23.9]} 14... Qxc3 {[%clk 0:02:42.5]} 15. bxc3 {[%clk
0:02:24.8]} 15... Rc8 {[%clk 0:02:42.7]} 16. h4 {[%clk 0:02:16.2]} 16... Rxc3
{[%clk 0:02:40.7]} 17. Bd2 {[%clk 0:02:14.4]} 17... Rc7 {[%clk 0:02:26.9]} 18.
h5 {[%clk 0:01:59]} 18... b6 {[%clk 0:02:15.8]} 19. hxg6 {[%clk 0:01:51.5]}
19... hxg6 {[%clk 0:02:14.8]} 20. Bh6 {[%clk 0:01:49.6]} 20... a5 {[%clk
0:02:09]} 21. Bxg7 {[%clk 0:01:48.5]} 21... Kxg7 {[%clk 0:02:08.9]} 22. Rdg1
{[%clk 0:01:37.7]} 22... a4 {[%clk 0:02:04.4]} 23. Nf5+ {[%clk 0:01:03]} 23...
Bxf5 {[%clk 0:02:00.2]} 24. gxf5 {[%clk 0:00:56.7]} 24... axb3 {[%clk
0:01:56.3]} 25. axb3 {[%clk 0:00:52.8]} 25... Nxf3 {[%clk 0:01:56.6]} 26. Rg2
{[%clk 0:00:48.1]} 26... Nxe4 {[%clk 0:01:55.5]} 27. fxg6 {[%clk 0:00:46.6]}
27... fxg6 {[%clk 0:01:53.3]} 28. Kb2 {[%clk 0:00:44.9]} 28... Ne5 {[%clk
0:01:52.2]} 29. Re1 {[%clk 0:00:39.6]} 29... Nc5 {[%clk 0:01:50.5]} 30. Rh1
{[%clk 0:00:36.8]} 30... Rc8 {[%clk 0:01:48]} 31. Rgh2 {[%clk 0:00:37]} 31...
Kf6 {[%clk 0:01:48.7]} 32. Rf1+ {[%clk 0:00:35.7]} 32... Ke6 {[%clk 0:01:49.4]}
33. Rh7 {[%clk 0:00:33.3]} 33... g5 {[%clk 0:01:48.7]} 34. Rg7 {[%clk
0:00:31.6]} 34... g4 {[%clk 0:01:48.7]} 35. Re1 {[%clk 0:00:30.2]} 35... Kf6
{[%clk 0:01:47.3]} 36. Rh7 {[%clk 0:00:29.3]} 36... Rg8 {[%clk 0:01:47.8]} 37.
Rf1+ {[%clk 0:00:28.6]} 37... Ke6 {[%clk 0:01:48.5]} 38. Rh6+ {[%clk 0:00:29.1]}
38... Kd7 {[%clk 0:01:48.5]} 39. Rd1 {[%clk 0:00:25]} 39... g3 {[%clk 0:01:48]}
40. Rh5 {[%clk 0:00:23.6]} 40... g2 {[%clk 0:01:47.5]} 41. Rxe5 {[%clk
0:00:24.2]} 41... g1=Q {[%clk 0:01:48]} 42. Rxg1 {[%clk 0:00:24.5]} 42... Rxg1
{[%clk 0:01:48.2]} 43. Rh5 {[%clk 0:00:25.2]} 43... Rg2 {[%clk 0:01:48.2]} 44.
Rh3 {[%clk 0:00:24.8]} 44... e5 {[%clk 0:01:48.3]} 45. Kc3 {[%clk 0:00:21.9]}
45... Kc6 {[%clk 0:01:48.6]} 46. Rh8 {[%clk 0:00:21.4]} 46... Kd5 {[%clk
0:01:46.7]} 47. b4 {[%clk 0:00:18]} 47... Ne4+ {[%clk 0:01:46.4]} 48. Kb3 {[%clk
0:00:18.6]} 48... b5 {[%clk 0:01:45.4]} 49. Rb8 {[%clk 0:00:17.8]} 49... Kc6
{[%clk 0:01:45.6]} 50. Rc8+ {[%clk 0:00:17.7]} 50... Kd7 {[%clk 0:01:45.9]} 51.
Rb8 {[%clk 0:00:17.9]} 51... Rg3+ {[%clk 0:01:46]} 52. Kb2 {[%clk 0:00:17.6]}
52... Nc3 {[%clk 0:01:45.4]} 53. Ra8 {[%clk 0:00:15]} 53... Kc6 {[%clk
0:01:45.7]} 54. Rc8+ {[%clk 0:00:14.5]} 54... Kd5 {[%clk 0:01:45.6]} 55. Rxc3
{[%clk 0:00:14.2]} 55... Rxc3 {[%clk 0:01:45.7]} 56. Kxc3 {[%clk 0:00:15.1]}
56... e4 {[%clk 0:01:46.3]} 57. Kd2 {[%clk 0:00:15]} 57... Kc4 {[%clk
0:01:46.7]} 58. Ke3 {[%clk 0:00:14.4]} 58... d5 {[%clk 0:01:47.2]} 59. Kf4
{[%clk 0:00:14.1]} 59... Kxb4 {[%clk 0:01:47.3]} 60. Ke5 {[%clk 0:00:14.5]}
60... Kc4 {[%clk 0:01:47.6]} 61. Kf4 {[%clk 0:00:14.8]} 61... b4 {[%clk
0:01:47.6]} 62. Ke3 {[%clk 0:00:15.1]} 62... Kc3 {[%clk 0:01:48.3]} 0-1